[Event "Bijnor Open 2024"]
[Site "Bijnor"]
[Date "2024.03.19"]
[Round "6.10"]
[White "Badhwar, Daksh"]
[Black "Arnav Agrawal"]
[Result "0-1"]
[ECO "B51"]
[WhiteElo "1574"]
[BlackElo "1843"]
[Annotator "NA RC"]
[PlyCount "107"]
[EventDate "2024.03.17"]
[EventCountry "IND"]
[SourceTitle "playchess.com"]
[Source "ChessBase"]
[SourceQuality "1"]
[TimeControl "5400+30"]

1. e4 {[%emt 0:00:59]} c5 {[%emt 0:00:18]} 2. Nf3 {[%emt 0:01:01]} d6 {[%emt 0:00:04]} 3. Bb5+ {[%emt 0:00:22]} Nd7 {[%emt 0:00:06]} 4. a4 {[%emt 0:00:29]} Ngf6 {[%emt 0:00:38]} 5. Nc3 {[%emt 0:01:18]} e6 {[%emt 0:02:10]} 6. O-O {[%emt 0:04:12]} Be7 {[%emt 0:00:16]} 7. Re1 {[%emt 0:01:15]} O-O {[%emt 0:00:07] B51: Sicilian: Moscow Variation (3 Bb5+) without 3...Bd7.} 8. a5 {[%emt 0:04:50]} Nb8 {[%emt 0:04:22]} 9. d4 {[%emt 0:01:57]} a6 {[%emt 0:03:37]} 10. Bf1 {[%emt 0:01:03]} Nc6 {[%emt 0:08:32]} 11. dxc5 {[%emt 0:06:34]} dxc5 {[%emt 0:00:22]} 12. Qxd8 {[%emt 0:05:20]} Bxd8 {[%emt 0:00:07]} 13. Be3 {[%emt 0:01:21]} Nd7 {[%emt 0:01:00]} 14. Na4 {[%emt 0:01:58]} Bxa5 {[%emt 0:00:45]} 15. Red1 {[%emt 0:05:18]} b6 {[%emt 0:02:34]} 16. Rd6 {[%emt 0:03:20]} Nd8 {[%emt 0:05:49]} 17. Nxc5 {[%emt 0:10:46]} Nxc5 {[%emt 0:02:18]} 18. Bxc5 {[%emt 0:00:08]} Nb7 {[%emt 0:00:05]} 19. Ba3 {[%emt 0:15:36]} Nxd6 {[%emt 0:02:02]} 20. Bxd6 {[%emt 0:00:03]} Rd8 {[%emt 0:00:35]} 21. e5 {[%emt 0:00:27]} f6 {[%emt 0:02:47]} 22. c3 {[%emt 0:01:37]} fxe5 {[%emt 0:07:54]} 23. Bxe5 {[%emt 0:00:03]} Bb7 {[%emt 0:01:08]} 24. b4 {[%emt 0:01:50]} Bxb4 {[%emt 0:00:24]} 25. cxb4 {[%emt 0:00:11]} a5 {[%emt 0:02:05]} 26. Bc4 {[%emt 0:06:07]} Bd5 {[%emt 0:00:18]} 27. Bxd5 {[%emt 0:01:12]} Rxd5 {[%emt 0:00:28]} 28. Kf1 {[%emt 0:05:48]} a4 {[%emt 0:01:21]} 29. Ke2 {[%emt 0:05:09]} b5 {[%emt 0:00:16]} 30. Bd4 {[%emt 0:02:46]} Rad8 {[%emt 0:01:56]} 31. Bc5 {[%emt 0:00:32]} e5 {[%emt 0:00:14]} 32. Ke3 {[%emt 0:01:29]} Rd1 {[%emt 0:00:13]} 33. Rxd1 {[%emt 0:02:26]} Rxd1 {[%emt 0:00:06]} 34. Nxe5 {[%emt 0:00:13]} a3 {[%emt 0:00:08]} 35. Nd3 {[%emt 0:00:09]} a2 {[%emt 0:00:27]} 36. Bd4 {[%emt 0:00:05]} a1=Q {[%emt 0:00:07]} 37. Bxa1 {[%emt 0:00:06]} Rxa1 {[%emt 0:00:04]} 38. Ne5 {[%emt 0:06:40]} Rc1 {[%emt 0:02:18]} 39. Kd4 {[%emt 0:01:13]} Kf8 {[%emt 0:00:53]} 40. Kd5 {[%emt 0:00:58]} Ke7 {[%emt 0:00:24]} 41. Nc6+ {[%emt 0:00:42]} Kd7 {[%emt 0:00:13]} 42. Nd4 {[%emt 0:00:22]} Rg1 {[%emt 0:00:59]} 43. g3 {[%emt 0:00:49]} Rg2 {[%emt 0:00:05]} 44. Nxb5 {[%emt 0:01:17]} Rxf2 {[%emt 0:00:05]} 45. Nd4 {[%emt 0:01:34]} Rxh2 {[%emt 0:00:10]} 46. Nf5 $19 {[%emt 0:00:23]} g6 {[%emt 0:00:15]} 47. Nd4 {[%emt 0:01:30]} Rg2 {[%emt 0:00:24]} 48. Ke5 {[%emt 0:00:06]} Rxg3 {[%emt 0:00:10]} 49. Kf6 {[%emt 0:00:05]} h5 {[%emt 0:00:17]} 50. Ne2 {[%emt 0:00:13]} h4 {[%emt 0:00:14]} 51. Ke5 {[%emt 0:00:26]} Rg4 {[%emt 0:00:09]} 52. Nf4 {[%emt 0:00:18]} g5 {[%emt 0:00:37]} 53. Nd5 {[%emt 0:00:34]} Rg3 {[%emt 0:54:04]} 54. Kd4 {[%emt 0:02:20]} 0-1

[Event "Bijnor Open 2024"]
[Site "Bijnor"]
[Date "2024.03.20"]
[Round "7.1"]
[White "Neelash Saha"]
[Black "Ram Prakash, R."]
[Result "1-0"]
[ECO "D37"]
[WhiteElo "2463"]
[BlackElo "2191"]
[Annotator "TA"]
[PlyCount "57"]
[EventDate "2024.03.17"]
[EventCountry "IND"]
[SourceTitle "playchess.com"]
[Source "ChessBase"]
[SourceQuality "1"]
[TimeControl "5400+30"]

{[%evp 17,57,20,26,18,31,48,39,44,46,49,131,-72,-72,-65,57,59,66,53,59,73,78,87,87,86,102,99,116,121,114,120,152,141,205,199,311,242,401,440,445,413,411,419]} 1. d4 {[%emt 1:31:00]} d5 {[%emt 0:01:36]} 2. c4 {[%emt 0:00:00]} e6 {[%emt 0:00:06]} 3. Nc3 {[%emt 0:00:00]} Be7 {[%emt 0:00:21]} 4. Nf3 {[%emt 0:00:00]} Nf6 {[%emt 0:00:09]} 5. Bf4 {[%emt 0:00:00]} O-O {[%emt 0:01:54]} 6. e3 {[%emt 0:00:00]} c5 {[%emt 0:03:07]} 7. dxc5 {[%emt 0:00:00]} Bxc5 {[%emt 0:00:09]} 8. a3 {[%emt 0:00:00]} Nc6 {[%emt 0:00:07]} 9. Qc2 {[%emt 0:00:00]} Re8 {[%emt 0:00:57]} 10. O-O-O {[%emt 0:00:00] Und cxd5 würde nun gewinnen.} Qa5 {[%emt 0:12:33]} 11. Nd2 {[%emt 0:00:00] Droht Nb3 und aus.} Be7 {[%emt 0:09:01]} 12. Nb3 {[%emt 0:00:00] Weiß steht etwas besser.} Qb6 {[%emt 0:00:18]} 13. cxd5 {[%emt 0:00:00]} Nxd5 {[%emt 0:01:12]} (13... exd5 $14 14. Nxd5 Nxd5 15. Rxd5 a6 (15... Be6 16. Rb5 $14)) 14. Rxd5 $2 {[%emt 0:00:00]} (14. Na4 $1 $16 {[%cal Ra4b6]} Qd8 15. e4) 14... exd5 $17 {[%emt 0:00:33]} 15. Nxd5 {[%emt 0:00:00]} Qd8 {[%emt 0:00:44]} (15... Bf5 $1 $15 16. Nxb6 (16. Qxf5 Qxb3 17. Qd3 Qa2 $17) (16. e4 Qd8 $19) 16... Bxc2 17. Nxa8 Bxb3) 16. Nc7 $14 {[%emt 0:00:00] Ein dynamisches Springerpaar.} Be6 {[%emt 0:00:40] Zielt auf ...Bxb3 ab.} 17. Bc4 {[%emt 0:00:00] Weiß steht deutlich aktiver.} Bxc4 $1 {[%emt 0:01:45]} 18. Qxc4 {[%emt 0:00:00]} Bf6 {[%emt 0:02:13]} 19. Nxa8 {[%emt 0:00:00]} (19. Rd1 {hält die Spannung aufrecht.} Bxb2+ 20. Kc2 Qf6 21. Nd5) 19... Qxa8 {[%emt 0:00:37] [#]} 20. Kb1 $1 {[%emt 0:00:00]} Qc8 {[%emt 0:02:58]} 21. Rc1 {[%emt 0:00:00]} Qg4 {[%emt 0:01:16]} 22. Bg3 {[%emt 0:00:00]} Qf5+ {[%emt 0:01:16]} 23. Rc2 {[%emt 0:00:00]} h5 {[%emt 0:01:26][%cal Oh5h4] [#]} 24. Nc5 $1 {[%emt 0:00:00]} h4 {[%emt 0:09:09]} (24... b6 $16 {ist eine bessere Verteidigung.}) 25. Bxh4 $18 {[%emt 0:00:00]} (25. Nxb7 hxg3 26. hxg3 (26. Qxc6 $2 gxf2 27. Qxe8+ Kh7 $19) 26... Ne5 $17) 25... b5 {[%emt 0:06:05]} (25... Bxh4 $142 26. Qxh4 b5) 26. Qd3 {[%emt 0:00:00]} Qe5 {[%emt 0:09:03]} (26... Qxd3 27. Nxd3 Bxh4) 27. Nd7 {[%emt 0:00:00]} ({Auf keinen Fall} 27. Qxb5 Bxh4 28. Qxc6 Rd8 $18) 27... Qe6 {[%emt 0:00:29]} 28. Bxf6 {[%emt 0:00:00]} ({Schwächer ist} 28. Qxb5 Bxh4 29. Qxc6 (29. Rxc6 $2 {geht unter.} Qxd7 30. g3 Bf6 $19) 29... Qxc6 30. Rxc6 Bxf2 $14) 28... gxf6 {[%emt 0:00:11]} 29. Qxb5 {[%emt 0:00:00] Gewichteter Fehlerwert: Weiß=0.21 (präzise) /Schwarz=0.39.  Fehler:       	Weiß=1     	Schwarz=5     OK:         	Weiß=7     	Schwarz=3     Bester:       	Weiß=3     	---        Stark:        	Weiß=2     	Schwarz=1} 1-0

[Event "Bijnor Open 2024"]
[Site "Bijnor"]
[Date "2024.03.20"]
[Round "7.2"]
[White "Singh, Arvinder Preet"]
[Black "Dutta, Joydeep"]
[Result "1/2-1/2"]
[ECO "C92"]
[WhiteElo "2030"]
[BlackElo "2041"]
[Annotator "RC"]
[PlyCount "102"]
[EventDate "2024.03.17"]
[EventCountry "IND"]
[SourceTitle "playchess.com"]
[Source "ChessBase"]
[SourceQuality "1"]
[TimeControl "5400+30"]

1. e4 {[%emt 0:00:03]} e5 {[%emt 0:02:19]} 2. Nf3 {[%emt 0:00:20]} Nc6 {[%emt 0:00:03]} 3. Bb5 {[%emt 0:00:26]} a6 {[%emt 0:00:06]} 4. Ba4 {[%emt 0:00:30]} Nf6 {[%emt 0:00:09]} 5. O-O {[%emt 0:00:13]} Be7 {[%emt 0:00:08]} 6. Re1 {[%emt 0:00:19]} b5 {[%emt 0:00:09]} 7. Bb3 {[%emt 0:00:05]} d6 {[%emt 0:00:04]} 8. c3 {[%emt 0:00:06]} O-O {[%emt 0:00:11]} 9. h3 {[%emt 0:00:05]} Bb7 {[%emt 0:00:09]} 10. d4 {[%emt 0:00:18]} Re8 {[%emt 0:00:05]} 11. Nbd2 {[%emt 0:00:29]} Bf8 {[%emt 0:00:07]} 12. a3 {[%emt 0:00:53]} g6 {[%emt 0:00:16]} 13. Bc2 {[%emt 0:00:24]} Bg7 {[%emt 0:00:26]} 14. b4 {[%emt 0:00:32]} d5 {[%emt 0:00:53]} 15. dxe5 {[%emt 0:02:14]} Nxe5 {[%emt 0:00:24]} 16. Nxe5 {[%emt 0:00:49]} Rxe5 {[%emt 0:00:02]} 17. f4 {[%emt 0:02:03]} Rxe4 {[%emt 0:00:02]} 18. Bxe4 {[%emt 0:02:12]} dxe4 {[%emt 0:01:41]} 19. Qc2 {[%emt 0:12:58]} Qd6 {[%emt 0:02:58]} 20. Nb3 {[%emt 0:02:18]} Nd5 {[%emt 0:04:05]} 21. Nc5 {[%emt 0:31:40]} Bxc3 {[%emt 0:25:46]} 22. Bb2 {[%emt 0:13:53]} Bxe1 {[%emt 0:14:48]} 23. Rxe1 {[%emt 0:00:28]} Qc6 {[%emt 0:00:23]} 24. Qxe4 {[%emt 0:02:40]} f6 {[%emt 0:09:23]} 25. Nxb7 {[%emt 0:03:41]} Qxb7 {[%emt 0:00:03]} 26. Qe6+ {[%emt 0:00:19]} Kg7 {[%emt 0:00:09]} 27. Bxf6+ {[%emt 0:06:14]} Nxf6 {[%emt 0:00:07]} 28. Qe7+ {[%emt 0:00:01]} Kh6 {[%emt 0:00:03]} 29. Qxf6 {[%emt 0:02:18]} Qb6+ {[%emt 0:00:11]} 30. Qxb6 {[%emt 0:00:08]} cxb6 {[%emt 0:00:02]} 31. Re6 {[%emt 0:00:28]} Rb8 {[%emt 0:02:10]} 32. Kf2 {[%emt 0:00:44]} Rb7 {[%emt 0:00:58]} 33. Ke3 {[%emt 0:01:26]} Rc7 {[%emt 0:06:29]} 34. Kd4 {[%emt 0:02:54]} a5 {[%emt 0:01:55]} 35. Rxb6 {[%emt 0:04:22]} axb4 {[%emt 0:01:12]} 36. axb4 {[%emt 0:00:02]} Rc4+ {[%emt 0:00:30]} 37. Ke5 {[%emt 0:00:01]} Rxb4 {[%emt 0:00:18]} 38. Rb7 {[%emt 0:04:32]} Rb3 {[%emt 0:02:11]} 39. g4 {[%emt 0:02:19]} Rxh3 {[%emt 0:08:02]} 40. g5+ {[%emt 0:00:06]} Kh5 {[%emt 0:00:02]} 41. Rxh7+ {[%emt 0:00:07]} Kg4 {[%emt 0:00:03]} 42. Rxh3 {[%emt 0:00:09]} Kxh3 {[%emt 0:00:01]} 43. f5 {[%emt 0:00:01]} b4 {[%emt 0:00:01]} 44. fxg6 {[%emt 0:04:41]} b3 {[%emt 0:00:01]} 45. g7 {[%emt 0:00:02]} b2 {[%emt 0:00:11]} 46. g8=Q {[%emt 0:00:08]} b1=Q {[%emt 0:00:03]} 47. Qe6+ {[%emt 0:01:02]} Kh4 {[%emt 0:00:14]} 48. g6 {[%emt 0:00:55]} Qb2+ {[%emt 0:01:14]} 49. Kd6 {[%emt 0:00:49]} Kg5 {[%emt 0:01:33]} 50. Ke7 {[%emt 0:01:28]} Qg7+ {[%emt 0:00:07]} 51. Qf7 {[%emt 0:00:28]} Qxg6 {[%emt 0:00:02]} 1/2-1/2

[Event "Bijnor Open 2024"]
[Site "Bijnor"]
[Date "2024.03.20"]
[Round "7.3"]
[White "Daksh Goyal"]
[Black "Srihari L R"]
[Result "0-1"]
[ECO "D02"]
[WhiteElo "1926"]
[BlackElo "2490"]
[Annotator "TA"]
[PlyCount "149"]
[EventDate "2024.03.17"]
[EventCountry "IND"]
[SourceTitle "playchess.com"]
[Source "ChessBase"]
[SourceQuality "1"]
[TimeControl "5400+30"]

{[%evp 10,149,25,20,50,28,33,5,0,-7,0,0,-5,-14,-6,-39,-45,-43,-15,-14,-12,-15,-29,-26,-17,-22,9,13,12,0,0,0,0,0,0,-10,-5,-12,0,-16,-13,-29,-16,-34,-25,-33,-25,-37,-27,-72,-72,-76,-82,-85,-86,-85,-87,-82,-81,-102,-95,-99,-77,-95,-95,-95,-95,-95,-95,-102,-102,-102,-102,-102,-102,-102,-102,-102,-95,-102,-102,-102,-102,-102,-102,-102,-102,-102,-102,-102,-102,-128,-102,-102,-102,-102,-102,-102,-102,-102,-95,-102,-102,-104,-98,-97,-97,-270,-259,-376,-391,-177,-324,-348,-300,-488,-469,-515,-387,-474,-206,-163,-189,-254,-247,-247,-247,-232,-231,-1088,-772,-29973,-29971,-29983,-29982,-29987,-29988,-29988,-29988,-29995,-29996,-29999]} 1. Nf3 {[%emt 0:03:19]} d5 {[%emt 0:00:53]} 2. g3 {[%emt 0:00:25]} c5 {[%emt 0:01:00]} 3. Bg2 {[%emt 0:00:59]} Nc6 {[%emt 0:00:08]} 4. d4 {[%emt 0:02:10]} Nf6 {[%emt 0:05:02]} 5. O-O {[%emt 0:02:14]} Bg4 {[%emt 0:02:58]} 6. Ne5 {[%emt 0:17:44]} Bh5 {[%emt 0:05:55]} 7. Nxc6 {[%emt 0:06:57]} bxc6 {[%emt 0:00:13]} 8. c4 {[%emt 0:14:10]} e6 {[%emt 0:04:38] The position is equal.} 9. cxd5 {[%emt 0:05:43]} cxd5 {[%emt 0:00:54]} 10. Nc3 {[%emt 0:04:19]} Rc8 {[%emt 0:06:24]} 11. Qa4+ {[%emt 0:12:48]} Qd7 {[%emt 0:01:27]} 12. dxc5 {[%emt 0:00:50]} (12. Qxd7+ {simplifies} Nxd7 13. Be3 Be7 14. f3) 12... Bxc5 {[%emt 0:00:56]} 13. Bg5 {[%emt 0:04:39]} Qxa4 {[%emt 0:06:39]} 14. Nxa4 {[%emt 0:00:01]} Bd4 {[%emt 0:01:12]} (14... Bxe2 $2 {perishes.} 15. Rfc1 $18) 15. e3 {[%emt 0:04:07]} Be5 {[%emt 0:00:27]} 16. Rfc1 {[%emt 0:01:54]} Ke7 {[%emt 0:02:40]} 17. Bf4 {[%emt 0:02:33]} Bd6 {[%emt 0:07:15]} 18. Bxd6+ {[%emt 0:00:55]} Kxd6 {[%emt 0:00:01]} 19. b4 {[%emt 0:01:28]} Be2 {[%emt 0:05:16]} 20. Nc5 {[%emt 0:03:11]} Rc7 {[%emt 0:00:25]} 21. Rc2 {[%emt 0:07:48]} Bc4 {[%emt 0:02:09]} 22. Bf1 {[%emt 0:00:55]} Bxf1 {[%emt 0:02:43]} 23. Kxf1 {[%emt 0:00:11]} Ke7 {[%emt 0:02:07]} 24. Rb2 {[%emt 0:02:11]} Rhc8 {[%emt 0:00:12]} 25. Rd1 {[%emt 0:00:31]} Ng4 {[%emt 0:02:08]} 26. h3 {[%emt 0:00:44]} Ne5 {[%emt 0:00:05][%cal Oa7a5]} 27. Rb3 {[%emt 0:00:39] [#]} a5 $1 {[%emt 0:01:06]} 28. a3 {[%emt 0:00:15]} f5 {[%emt 0:00:49]} 29. Rbb1 {[%emt 0:00:42]} Nc4 {[%emt 0:00:36]} 30. Ra1 {[%emt 0:00:31][%cal Bb1a1,Ba1a3,Ba3b3,Bb3b4,Bb4d4][%mdl 32] [#]} Nxa3 $1 {[%emt 0:01:27]} 31. Rxa3 {[%emt 0:00:27]} axb4 {[%emt 0:00:04]} 32. Rb3 {[%emt 0:00:11]} Rxc5 {[%emt 0:00:07]} 33. Rxb4 $17 {[%emt 0:00:06][%mdl 4096] Endgame. KRR-KRR} Rc2 {[%emt 0:00:23]} 34. Rbd4 {[%emt 0:01:22]} Kd6 {[%emt 0:01:52]} 35. Ra4 {[%emt 0:00:27]} Rb8 {[%emt 0:00:23]} 36. Kg1 {[%emt 0:00:14]} Rbb2 {[%emt 0:00:05]} 37. Rf1 {[%emt 0:00:02]} Ke5 {[%emt 0:01:00]} 38. Ra7 {[%emt 0:00:19]} Kf6 {[%emt 0:00:02]} 39. Rd7 {[%emt 0:00:24]} Re2 {[%emt 0:00:54]} 40. Rd8 {[%emt 0:00:39]} h6 {[%emt 0:00:30]} 41. Rf8+ {[%emt 0:00:57]} Ke7 {[%emt 0:00:30]} 42. Rg8 {[%emt 0:00:14]} Kf7 {[%emt 0:00:04]} 43. Rd8 {[%emt 0:00:21]} Red2 {[%emt 0:00:39]} 44. Rd7+ {[%emt 0:00:37]} Kf6 {[%emt 0:00:02]} 45. Rd8 {[%emt 0:00:15]} Rb7 {[%emt 0:00:59]} 46. Rc1 {[%emt 0:01:05]} Ra2 {[%emt 0:01:37]} 47. Re8 {[%emt 0:01:27]} Rbb2 {[%emt 0:01:10]} 48. Rf1 {[%emt 0:00:00]} Re2 {[%emt 0:00:55]} 49. Rd8 {[%emt 0:00:00]} Ke5 {[%emt 0:01:25] Black is more active.} 50. Rg8 {[%emt 0:00:12]} Ra7 {[%emt 0:00:54]} 51. Re8 {[%emt 0:00:14]} Ra6 {[%emt 0:01:30]} 52. Rg8 {[%emt 0:00:52]} Kf6 {[%emt 0:00:33]} 53. Rd8 {[%emt 0:00:25]} Rea2 {[%emt 0:01:25]} 54. Rf8+ {[%emt 0:00:53]} Ke5 {[%emt 0:00:26]} 55. Rg8 {[%emt 0:01:24]} Ra7 {[%emt 0:00:21]} 56. Re8 {[%emt 0:00:00]} Ra8 {[%emt 0:00:58]} 57. Rxa8 {[%emt 0:00:00]} Rxa8 {[%emt 0:00:01] KR-KR} 58. Rd1 $2 {[%emt 0:00:53] Now White is beyond hope.} (58. Rb1 $17) 58... Ke4 $19 {[%emt 0:00:15] ...Kf3 is the strong threat.} 59. Rd4+ {[%emt 0:00:34]} (59. Kg2 {might work better.}) 59... Kf3 {[%emt 0:01:48] Hoping for ...Ra1+.} 60. Rf4+ {[%emt 0:00:02]} Ke2 {[%emt 0:00:10]} 61. Kg2 {[%emt 0:00:50]} Ra6 {[%emt 0:04:28]} 62. g4 $2 {[%emt 0:00:31]} (62. Rd4) 62... g5 {[%emt 0:00:22]} 63. Rd4 {[%emt 0:00:30]} fxg4 {[%emt 0:00:10]} 64. hxg4 {[%emt 0:00:33]} Rc6 {[%emt 0:00:27]} (64... Ra3 $142 {Strongly threatening ...Ra2.} 65. Rb4 e5 66. Rb2+ Kd1 (66... Kd3 67. Rb5 $17)) 65. Ra4 {[%emt 0:00:28] [#]} e5 $1 {[%emt 0:00:07]} 66. Ra2+ {[%emt 0:00:21]} Kd3 {[%emt 0:00:01]} 67. Ra3+ {[%emt 0:00:19]} Kd2 {[%emt 0:00:38] Threatens to win with ...d4.} 68. Ra2+ {[%emt 0:00:43]} Rc2 {[%emt 0:01:51]} 69. Ra5 $2 {[%emt 0:00:09]} (69. Ra4) 69... d4 {[%emt 0:00:14]} 70. Rxe5 {[%emt 0:00:41]} d3 {[%emt 0:00:06] Black mates.} 71. Re6 {[%emt 0:00:41]} Ke1 {[%emt 0:00:07]} 72. Rxh6 {[%emt 0:00:44]} Rxf2+ {[%emt 0:00:05]} 73. Kg3 {[%emt 0:00:14]} d2 {[%emt 0:00:06]} 74. e4 {[%emt 0:00:26]} d1=Q {[%emt 0:30:01][%csl Gf2][%cal Rd1f3]} ({Weaker is} 74... d1=B 75. Rg6 $15) 75. Rb6 {Weighted Error Value: White=0.10 (very precise) /Black=0.05 (flawless) .  Loses game:     	White=1     	---        Mistake:       	White=3     	Black=1      Inaccurate:     	White=4     	Black=2      OK:         	White=26    	Black=21     Best:        	White=4     	Black=8      Strong:       	---       	Black=1      Brilliant:      	---       	Black=1} 0-1

[Event "Bijnor Open 2024"]
[Site "Bijnor"]
[Date "2024.03.20"]
[Round "7.4"]
[White "Arnav Agrawal"]
[Black "Laxman, R.R."]
[Result "0-1"]
[ECO "D37"]
[WhiteElo "1843"]
[BlackElo "2331"]
[Annotator "TA"]
[PlyCount "122"]
[EventDate "2024.03.17"]
[EventCountry "IND"]
[SourceTitle "playchess.com"]
[Source "ChessBase"]
[SourceQuality "1"]
[TimeControl "5400+30"]

{[%evp 9,122,35,40,38,31,32,29,8,4,0,8,13,4,0,0,0,0,0,0,0,0,0,0,0,0,-8,-6,-9,-9,-13,-6,-7,0,0,0,-7,0,-25,-35,-19,-7,-7,-14,-20,-12,-18,-20,-17,-14,-22,-12,-43,-44,-176,-147,-177,-181,-181,-181,-183,-147,-152,-115,-260,-251,-256,-101,-258,-260,-250,-77,-70,-72,-81,-75,-85,-89,-88,-83,-139,-122,-167,-167,-293,-283,-297,-290,-273,-262,-263,-179,-531,-517,-780,-430,-503,-418,-1768,-1768,-1760,-1721,-1768,-1768,-1520,-1691,-1516,-1509,-1509,-1168,-1123,-1116,-1101,-871,-6244,-5401]} 1. d4 {[%emt 0:00:02]} d5 {[%emt 0:00:09]} 2. c4 {[%emt 0:00:05]} e6 {[%emt 0:00:05]} 3. Nc3 {[%emt 0:00:15]} h6 {[%emt 0:00:06]} 4. Nf3 {[%emt 0:01:33]} Nf6 {[%emt 0:00:06]} 5. Bf4 {[%emt 0:01:18]} Bd6 {[%emt 0:00:06]} 6. Bxd6 {[%emt 0:00:21]} Qxd6 {[%emt 0:00:03]} 7. e3 {[%emt 0:00:09]} O-O {[%emt 0:00:10]} 8. Bd3 {[%emt 0:00:05] White has an edge.} dxc4 {[%emt 0:00:25]} 9. Bxc4 {[%emt 0:00:16]} c5 {[%emt 0:00:27]} 10. O-O {[%emt 0:03:52]} Nc6 {[%emt 0:00:48]} 11. dxc5 {[%emt 0:01:31]} Qxc5 {[%emt 0:00:04]} 12. Bb3 {[%emt 0:04:26]} Rd8 {[%emt 0:01:02]} 13. Qe2 {[%emt 0:00:52]} Bd7 {[%emt 0:00:18]} 14. Rac1 {[%emt 0:00:24][%cal Oc3d5]} Qa5 {[%emt 0:00:32]} 15. Rfd1 {[%emt 0:05:25]} Ne5 {[%emt 0:00:38]} 16. Nxe5 {[%emt 0:04:51]} Qxe5 {[%emt 0:00:06]} 17. Rd4 {[%emt 0:00:11]} Bc6 {[%emt 0:00:22]} 18. Rcd1 {[%emt 0:00:29]} Rxd4 {[%emt 0:01:05]} 19. Rxd4 {[%emt 0:00:17]} Rc8 {[%emt 0:01:05]} 20. f3 {[%emt 0:04:55]} g6 {[%emt 0:01:38]} 21. Qd2 {[%emt 0:10:01]} Kg7 {[%emt 0:00:22]} 22. e4 {[%emt 0:00:18]} b5 {[%emt 0:03:08]} 23. a4 {[%emt 0:10:19]} bxa4 {[%emt 0:05:27]} 24. Bxa4 {[%emt 0:02:25]} Qc5 {[%emt 0:00:58] Threatens to win with ...e5.} 25. Qf2 {[%emt 0:48:40]} a5 {[%emt 0:00:53]} 26. Bxc6 {[%emt 0:00:00]} Rxc6 {[%emt 0:00:18]} 27. Rd2 {[%emt 0:00:00]} Qb4 {[%emt 0:02:25]} 28. Qd4 {[%emt 0:00:00]} Rc4 {[%emt 0:03:13]} 29. Qd6 {[%emt 0:00:00]} Qb7 {[%emt 0:00:13]} 30. g3 {[%emt 0:00:00]} Rb4 {[%emt 0:02:22]} 31. Qc5 {[%emt 0:00:00]} ({Only move:} 31. Nd1 $1 $15) 31... Rxb2 $19 {[%emt 0:01:05]} 32. Rxb2 {[%emt 0:00:00]} Qxb2 {[%emt 0:00:02]} 33. Qxa5 {[%emt 0:00:00][%mdl 4096] Endgame. KQN-KQN} Qc1+ {[%emt 0:00:19]} 34. Kg2 {[%emt 0:00:00]} Qd2+ {[%emt 0:00:02]} 35. Kg1 {[%emt 0:00:00]} Nd7 {[%emt 0:00:30]} 36. Qc7 {[%emt 0:00:00]} (36. h4 $17) 36... g5 {[%emt 0:01:02]} 37. Kf1 {[%emt 0:00:00]} Qd3+ {[%emt 0:00:44]} (37... Qe3 $1 $19 {[%cal Re3f3]} 38. Qxd7 Qxf3+ (38... Qxc3 39. Qd1 $11) 39. Ke1 Qxc3+ 40. Kf2 Qc2+ 41. Kg1 Qb1+ (41... Qxe4 $2 42. Qd6 $19) 42. Kg2 Qxe4+ 43. Kg1 Qb1+ 44. Kf2 Qf5+ 45. Ke3 Qe5+ 46. Kf2 Qc5+ 47. Kf1 Qd5) 38. Kf2 {[%emt 0:00:00]} (38. Kg2 $17) 38... Qd4+ $1 {[%emt 0:00:28]} 39. Kf1 {[%emt 0:00:00] [#]} Ne5 $2 {[%emt 0:02:10]} (39... Qe3 $1 $19 {[%cal Re3f3] has better winning chances.} 40. Qxd7 Qxf3+ (40... Qxc3 41. Qd1 $11) 41. Kg1 Qxc3) 40. Ne2 $17 {[%emt 0:00:00]} Qb2 {[%emt 0:02:13]} 41. f4 {[%emt 0:00:00]} Nf3 {[%emt 0:02:23]} 42. h3 {[%emt 0:00:00]} Nd2+ {[%emt 0:00:06]} 43. Kg2 {[%emt 0:00:00]} Nxe4 {[%emt 0:00:02]} 44. Qc4 {[%emt 0:00:00]} (44. Qe5+ $142 Qxe5 45. fxe5) 44... Nf6 {[%emt 0:01:11] Black is more active.} 45. Kf3 {[%emt 0:00:00]} Qb7+ {[%emt 0:00:07]} 46. Kf2 {[%emt 0:00:00] [#]} (46. Ke3 {was forced.}) 46... Qh1 $1 $19 {[%emt 0:02:20]} 47. fxg5 {[%emt 0:00:00]} hxg5 {[%emt 0:00:09]} 48. h4 {[%emt 0:00:00]} gxh4 {[%emt 0:01:20]} 49. gxh4 {[%emt 0:00:00]} Qh3 {[%emt 0:01:30] aiming for ...Ng4+.} 50. Qf4 {[%emt 0:00:00]} (50. Qd4 {was the crucial defense.}) 50... Ng4+ {[%emt 0:00:58]} 51. Kg1 {[%emt 0:00:00]} (51. Ke1 $142 Qxh4+ 52. Kd2) 51... Qe3+ {[%emt 0:00:28]} 52. Qxe3 {[%emt 0:00:01]} Nxe3 {[%emt 0:00:01] KN-KN} 53. Kf2 {[%emt 0:07:01]} (53. Kh2 $142 e5 54. Ng1) 53... Nf5 {[%emt 0:00:21] Black is clearly winning.} 54. h5 {[%emt 0:00:07]} Kh6 {[%emt 0:00:06]} 55. Nf4 {[%emt 0:00:15]} Ng7 {[%emt 0:00:06]} 56. Kf3 {[%emt 0:00:17]} Nxh5 {[%emt 0:00:06]} 57. Nd3 {[%emt 0:00:10]} Kg5 {[%emt 0:00:08]} 58. Ke4 {[%emt 0:00:08]} Nf6+ {[%emt 0:00:21]} 59. Ke5 {[%emt 0:00:13]} Ng4+ {[%emt 0:00:03]} 60. Ke4 {[%emt 0:00:17]} f5+ {[%emt 0:00:03]} 61. Kd4 {[%emt 0:00:09] [#]} e5+ $1 {[%emt 0:00:07] Weighted Error Value: White=0.55/Black=0.22 (precise) .  Missed win:     	---       	Black=1      Mistake:       	White=8     	Black=1      Inaccurate:     	White=2     	Black=2      OK:         	White=17    	Black=17     Best:        	White=2     	Black=5      Strong:       	---       	Black=2} 0-1

[Event "Bijnor Open 2024"]
[Site "Bijnor"]
[Date "2024.03.20"]
[Round "7.5"]
[White "Vignesh B"]
[Black "Sparsh Yadav"]
[Result "1-0"]
[ECO "B31"]
[WhiteElo "2209"]
[BlackElo "1775"]
[Annotator "RC"]
[PlyCount "35"]
[EventDate "2024.03.17"]
[EventCountry "IND"]
[SourceTitle "playchess.com"]
[Source "ChessBase"]
[SourceQuality "1"]
[TimeControl "5400+30"]

1. e4 {[%emt 0:00:07]} c5 {[%emt 0:00:24]} 2. Nf3 {[%emt 0:00:48]} Nc6 {[%emt 0:00:23]} 3. Bb5 {[%emt 0:01:20]} g6 {[%emt 0:00:29]} 4. Bxc6 {[%emt 0:00:27]} dxc6 {[%emt 0:00:32]} 5. d3 {[%emt 0:00:39]} Bg7 {[%emt 0:00:15]} 6. a4 {[%emt 0:00:05]} a5 {[%emt 0:00:20]} 7. Na3 {[%emt 0:00:06]} e5 {[%emt 0:00:31]} 8. Be3 {[%emt 0:00:53]} b6 {[%emt 0:00:09]} 9. Nc4 {[%emt 0:00:05]} Qc7 {[%emt 0:00:19]} 10. b4 {[%emt 0:00:19]} axb4 {[%emt 0:01:34]} 11. a5 {[%emt 0:00:08]} bxa5 {[%emt 0:00:36]} 12. Bxc5 {[%emt 0:00:04]} Bf8 {[%emt 0:02:04]} 13. Bb6 {[%emt 0:07:31]} Qb8 {[%emt 0:01:21]} 14. Nfxe5 {[%emt 0:02:07]} Be6 {[%emt 0:00:23]} 15. Nxc6 {[%emt 0:00:49]} Qb7 {[%emt 0:01:17]} 16. N6xa5 {[%emt 0:00:10]} Rxa5 {[%emt 0:00:52]} 17. Rxa5 {[%emt 0:00:22]} Bxc4 {[%emt 0:00:27]} 18. Qa1 {[%emt 0:00:04]} 1-0